fUST/lending_fUST_20240902
["ID","MTS","AMOUNT","RATE_DAILY","PERIOD"]
[336869591,1725221440668,-500.0,0.00024657,2]
[336869592,1725221440678,-500.0,0.00024657,2]
[336869593,1725221440687,-500.0,0.00024657,2]
[336869594,1725221440697,-500.0,0.00024657,2]
[336869595,1725221440707,-500.0,0.00024657,2]
[336869596,1725221440717,-500.0,0.00024657,2]
[336869597,1725221440726,-500.0,0.00024657,2]
[336869598,1725221440736,-1450.26,0.00024657,2]
[336869599,1725221440745,-493.54742001,0.00024657,2]
[336869600,1725221440755,-500.0,0.00024657,2]
[336869601,1725221440765,-500.0,0.00024657,2]
[336869602,1725221440775,-500.0,0.00024657,2]
[336869603,1725221440784,-500.0,0.00024657,2]
[336869604,1725221440794,-500.0,0.00024657,2]
[336869605,1725221440803,-500.0,0.00024657,2]
[336869606,1725221440813,-500.0,0.00024657,2]
[336869607,1725221440822,-500.0,0.00024657,2]
[336869608,1725221440831,-500.0,0.00024657,2]
[336869609,1725221440841,-500.0,0.00024657,2]
[336869610,1725221440850,-500.0,0.00024657,2]
[336869611,1725221440859,-596.57,0.00024657,2]
[336869612,1725221440869,-500.0,0.00024657,2]
[336869613,1725221440879,-200.0,0.00024657,2]
[336869614,1725221440888,-500.0,0.00024657,2]
[336869615,1725221440898,-500.0,0.00024657,2]
[336869616,1725221440908,-500.0,0.00024657,2]
[336869617,1725221440917,-500.0,0.00024657,2]
[336869618,1725221440927,-500.0,0.00024657,2]
[336869619,1725221440937,-500.0,0.00024657,2]
[336869620,1725221440946,-500.0,0.00024657,2]
[336869621,1725221440956,-458.16028587,0.00024657,2]
[336869622,1725221440966,-521.10866005,0.00024657,2]
[336869623,1725221440976,-500.0,0.00024657,2]
[336869624,1725221440986,-500.0,0.00024657,2]
[336869625,1725221440996,-458.61057164,0.00024657,2]
[336869626,1725221441006,-500.0,0.00024657,2]
[336869627,1725221441016,-500.63432597,0.00024657,2]
[336869628,1725221441026,-500.0,0.00024657,2]
[336869629,1725221441035,-500.0,0.00024657,2]
[336869630,1725221441044,-500.0,0.00024657,2]
[336869631,1725221441054,-696.49,0.00024657,2]
[336869632,1725221441064,-500.0,0.00024657,2]
[336869633,1725221441074,-500.0,0.00024657,2]
[336869634,1725221441084,-500.0,0.00024657,2]
[336869635,1725221441094,-500.0,0.00024657,2]
[336869636,1725221441105,-557.99,0.00024657,2]
[336869637,1725221441115,-500.0,0.00024657,2]
[336869638,1725221441125,-406.17388176,0.00024657,2]
[336869639,1725221441134,-500.0,0.00024657,2]
[336869640,1725221441144,-500.0,0.00024657,2]
[336869641,1725221441154,-500.0,0.00024657,2]
[336869642,1725221441164,-607.28,0.00024657,2]
[336869643,1725221441174,-500.0,0.00024657,2]
[336869644,1725221441184,-500.0,0.00024657,2]
[336869645,1725221441194,-500.0,0.00024657,2]
[336869646,1725221441204,-500.0,0.00024657,2]
[336869647,1725221441214,-500.0,0.00024657,2]
[336869648,1725221441223,-500.0,0.00024657,2]
[336869649,1725221441233,-500.0,0.00024657,2]
[336869650,1725221441242,-500.0,0.00024657,2]
[336869651,1725221441253,-500.0,0.00024657,2]
[336869652,1725221441263,-500.0,0.00024657,2]
[336869653,1725221441273,-500.0,0.00024657,2]
[336869654,1725221441283,-771.11,0.00024657,2]
[336869655,1725221441293,-1775.25,0.00024657,2]
[336869656,1725221441304,-500.0,0.00024657,2]
[336869657,1725221441314,-500.0,0.00024657,2]
[336869658,1725221441324,-500.0,0.00024657,2]
[336869659,1725221441333,-2239.26,0.00024657,2]
[336869660,1725221441343,-500.0,0.00024657,2]
[336869661,1725221441353,-500.0,0.00024657,2]
[336869662,1725221441367,-500.0,0.00024657,2]
[336869663,1725221441376,-500.0,0.00024657,2]
[336869664,1725221441386,-775.26,0.00024657,2]
[336869665,1725221441395,-500.0,0.00024657,2]
[336869666,1725221441405,-503.47508224,0.00024657,2]
[336869667,1725221441414,-500.0,0.00024657,2]
[336869668,1725221441424,-500.0,0.00024657,2]
[336869669,1725221441434,-500.0,0.00024657,2]
[336869670,1725221441447,-500.0,0.00024657,2]
[336869671,1725221441459,-500.0,0.00024657,2]
[336869672,1725221441468,-804.01,0.00024657,2]
[336869673,1725221441478,-500.0,0.00024657,2]
[336869674,1725221441487,-500.0,0.00024657,2]
[336869675,1725221441496,-500.0,0.00024657,2]
[336869676,1725221441506,-500.0,0.00024657,2]
[336869677,1725221441515,-405.66399711,0.00024657,2]
[336869678,1725221441525,-1126.8,0.00024657,2]
[336869679,1725221441535,-500.0,0.00024657,2]
[336869680,1725221441545,-203.86507882,0.00024657,2]
[336869681,1725221441555,-500.0,0.00024657,2]
[336869682,1725221441564,-280.06400868,0.00024657,2]
[336869683,1725221441573,-500.0,0.00024657,2]
[336869684,1725221441583,-500.0,0.00024657,2]
[336869685,1725221441592,-500.0,0.00024657,2]
[336869686,1725221441602,-578.1198954,0.00024657,2]
[336869687,1725221441611,-732.64,0.00024657,2]
[336869688,1725221441621,-500.0,0.00024657,2]
[336869689,1725221441631,-500.0,0.00024657,2]
[336869690,1725221441640,-500.0,0.00024657,2]
[336869691,1725221441649,-451.82667742,0.00024657,2]
[336869692,1725221441659,-500.0,0.00024657,2]
[336869693,1725221441670,-1034.02,0.00024657,2]
[336869694,1725221441679,-501.51402623,0.00024657,2]
[336869695,1725221441690,-500.0,0.00024657,2]
[336869696,1725221441700,-500.0,0.00024657,2]
[336869697,1725221441710,-1065.51,0.00024657,2]
[336869698,1725221441721,-500.0,0.00024657,2]
[336869699,1725221441731,-500.0,0.00024657,2]
[336869700,1725221441741,-500.0,0.00024657,2]
[336869701,1725221441750,-500.0,0.00024657,2]
[336869702,1725221441759,-305.46657579,0.00024657,2]
[336869703,1725221441768,-500.0,0.00024657,2]
[336869704,1725221441778,-861.53,0.00024657,2]
[336869705,1725221441787,-500.0,0.00024657,2]
[336869706,1725221441797,-500.0,0.00024657,2]
[336869707,1725221441806,-568.69,0.00024657,2]
[336869708,1725221441816,-770.89,0.00024657,2]
[336869709,1725221441826,-500.0,0.00024657,2]
[336869710,1725221441835,-500.0,0.00024657,2]
[336869711,1725221441845,-508.84601125,0.00024657,2]
[336869712,1725221441854,-444.65031992,0.00024657,2]
[336869713,1725221441863,-500.0,0.00024657,2]
[336869714,1725221441872,-500.0,0.00024657,2]
[336869715,1725221441882,-500.0,0.00024657,2]
[336869716,1725221441892,-875.86,0.00024657,2]
[336869717,1725221441901,-500.0,0.00024657,2]
[336869718,1725221441910,-500.0,0.00024657,2]
[336869719,1725221441920,-500.0,0.00024657,2]
[336869720,1725221441929,-1002.3,0.00024657,2]
[336869721,1725221441939,-500.0,0.00024657,2]
[336869722,1725221441948,-650.83,0.00024657,2]
[336869723,1725221441958,-500.0,0.00024657,2]
[336869724,1725221441967,-500.0,0.00024657,2]
[336869725,1725221441976,-500.0,0.00024657,2]
[336869726,1725221441986,-500.0,0.00024657,2]
[336869727,1725221441995,-500.0,0.00024657,2]
[336869728,1725221442006,-733.2,0.00024657,2]
[336869729,1725221442015,-500.0,0.00024657,2]
[336869730,1725221442025,-500.0,0.00024657,2]
[336869731,1725221442034,-1330.05,0.00024657,2]
[336869732,1725221442044,-500.0,0.00024657,2]
[336869733,1725221442053,-500.0,0.00024657,2]
[336869734,1725221442062,-500.0,0.00024657,2]
[336869735,1725221442072,-500.0,0.00024657,2]
[336869736,1725221442081,-500.0,0.00024657,2]
[336869737,1725221442090,-500.0,0.00024657,2]
[336869738,1725221442100,-500.0,0.00024657,2]
[336869739,1725221442110,-500.0,0.00024657,2]
[336869740,1725221442119,-500.0,0.00024657,2]
[336869741,1725221442128,-500.0,0.00024657,2]
[336869742,1725221442138,-500.0,0.00024657,2]
[336869743,1725221442148,-1571.19,0.00024657,2]
[336869744,1725221442158,-500.0,0.00024657,2]
[336869745,1725221442168,-500.0,0.00024657,2]
[336869746,1725221442177,-500.0,0.00024657,2]
[336869747,1725221442186,-500.0,0.00024657,2]
[336869748,1725221442195,-500.0,0.00024657,2]
[336869749,1725221442205,-381.24220686,0.00024657,2]
[336869750,1725221442215,-500.0,0.00024657,2]
[336869751,1725221442224,-500.0,0.00024657,2]
[336869752,1725221442233,-500.0,0.00024657,2]
[336869754,1725221442243,-500.0,0.00024657,2]
[336869755,1725221442252,-1765.6,0.00024657,2]
[336869756,1725221442261,-500.0,0.00024657,2]
[336869757,1725221442270,-500.0,0.00024657,2]
[336869758,1725221442279,-458.69737463,0.00024657,2]
[336869759,1725221442289,-500.0,0.00024657,2]
[336869760,1725221442298,-500.0,0.00024657,2]
[336869761,1725221442308,-500.0,0.00024657,2]
[336869762,1725221442318,-795.14,0.00024657,2]
[336869763,1725221442327,-2304.22,0.00024657,2]
[336869764,1725221442337,-500.0,0.00024657,2]
[336869765,1725221442346,-384.48459736,0.00024657,2]
[336869766,1725221442355,-500.0,0.00024657,2]
[336869767,1725221442369,-596.63,0.00024657,2]
[336869768,1725221442379,-2010.43,0.00024657,2]
[336869769,1725221442388,-500.0,0.00024657,2]
[336869770,1725221442398,-500.0,0.00024657,2]
[336869771,1725221442407,-500.0,0.00024657,2]
[336869772,1725221442416,-500.0,0.00024657,2]
[336869773,1725221442426,-500.0,0.00024657,2]
[336869774,1725221442436,-500.0,0.00024657,2]
[336869775,1725221442448,-500.0,0.00024657,2]
[336869776,1725221442458,-500.0,0.00024657,2]
[336869777,1725221442467,-500.0,0.00024657,2]
[336869778,1725221442476,-1884.93,0.00024657,2]
[336869779,1725221442487,-1884.93,0.00024657,2]
[336869781,1725221442496,-1884.93,0.00024657,2]
[336869782,1725221442506,-1884.93,0.00024657,2]
[336869783,1725221442516,-1884.93,0.00024657,2]
[336869784,1725221442525,-1884.93,0.00024657,2]
[336869785,1725221442535,-500.0,0.00024657,2]
[336869786,1725221442544,-1884.93,0.00024657,2]
[336869787,1725221442554,-500.0,0.00024657,2]
[336869788,1725221442563,-500.0,0.00024657,2]
[336869789,1725221442573,-1884.93,0.00024657,2]
[336869790,1725221442583,-500.0,0.00024657,2]
[336869791,1725221442593,-1884.93,0.00024657,2]
[336869792,1725221442603,-500.0,0.00024657,2]
[336869793,1725221442613,-500.0,0.00024657,2]
[336869794,1725221442622,-500.0,0.00024657,2]
[336869795,1725221442632,-500.0,0.00024657,2]
[336869796,1725221442642,-2263.82,0.00024657,2]
[336869797,1725221442651,-500.0,0.00024657,2]
[336869798,1725221442661,-500.0,0.00024657,2]
[336869799,1725221442670,-500.0,0.00024657,2]
[336869800,1725221442679,-500.0,0.00024657,2]
[336869801,1725221442689,-500.0,0.00024657,2]
[336869802,1725221442698,-717.92,0.00024657,2]
[336869803,1725221442708,-500.0,0.00024657,2]
[336869804,1725221442717,-2148.37,0.00024657,2]
[336869805,1725221442727,-3110.39,0.00024657,2]
[336869806,1725221442737,-500.0,0.00024657,2]
[336869807,1725221442747,-571.10603971,0.00024657,2]
[336869808,1725221442758,-500.0,0.00024657,2]
[336869809,1725221442768,-500.0,0.00024657,2]
[336869810,1725221442777,-500.0,0.00024657,2]
[336869811,1725221442786,-1986.33,0.00024657,2]
[336869812,1725221442796,-500.0,0.00024657,2]
[336869813,1725221442805,-502.33887815,0.00024657,2]
[336869814,1725221442816,-271.67780194,0.00024657,2]
[336869815,1725221442826,-500.0,0.00024657,2]
[336869816,1725221442835,-500.0,0.00024657,2]
[336869817,1725221442845,-1749.24,0.00024657,2]
[336869818,1725221442854,-442.89816768,0.00024657,2]
[336869819,1725221442864,-500.0,0.00024657,2]
[336869820,1725221442874,-500.0,0.00024657,4]
[336869822,1725221442884,-500.0,0.00024657,2]
[336869824,1725221442893,-955.41,0.00024657,2]
[336869825,1725221442903,-729.89,0.00024657,2]
[336869826,1725221442913,-500.0,0.00024657,2]
[336869827,1725221442923,-500.0,0.00024657,2]
[336869828,1725221442933,-500.0,0.00024657,2]
[336869829,1725221442942,-500.0,0.00024657,2]
[336869830,1725221442951,-500.0,0.00024657,2]
[336869831,1725221442961,-500.0,0.00024657,2]
[336869832,1725221442970,-1414.5,0.00024657,2]
[336869834,1725221442980,-500.0,0.00024657,2]
[336869836,1725221442991,-500.0,0.00024657,2]
[336869837,1725221443003,-584.5252583,0.00024657,2]
[336869838,1725221443013,-500.0,0.00024657,2]
[336869839,1725221443024,-500.0,0.00024657,2]
[336869840,1725221443034,-500.0,0.00024657,2]
[336869841,1725221443043,-500.0,0.00024657,2]
[336869842,1725221443053,-500.0,0.00024657,2]
[336869843,1725221443063,-500.0,0.00024657,2]
[336869844,1725221443072,-2712.51369188,0.00024657,2]
[336869845,1725221443105,-200.28630812,0.00024657,2]
[336869846,1725221443114,-500.0,0.00024657,2]
[336869847,1725221443124,-500.0,0.00024657,2]
[336869848,1725221443134,-500.0,0.00024657,2]
[336869849,1725221443144,-747.76,0.00024657,2]
[336869850,1725221443153,-500.0,0.00024657,2]
[336869851,1725221443163,-14303.52,0.00024657,2]
[336869852,1725221443172,-711.24,0.00024657,2]
[336869853,1725221443183,-500.0,0.00024657,2]
[336869854,1725221443193,-500.0,0.00024657,2]
[336869855,1725221443202,-500.0,0.00024657,2]
[336869856,1725221443212,-500.0,0.00024657,2]
[336869857,1725221443221,-641.06249764,0.00024657,2]
[336869858,1725221443230,-1078.76,0.00024657,2]
[336869859,1725221443244,-500.0,0.00024657,2]
[336869860,1725221443253,-500.0,0.00024657,2]
[336869861,1725221443263,-500.0,0.00024657,2]
[336869862,1725221443272,-500.0,0.00024657,2]
[336869863,1725221443282,-500.0,0.00024657,2]
[336869864,1725221443291,-500.0,0.00024657,2]
[336869865,1725221443301,-500.0,0.00024657,2]
[336869866,1725221443310,-500.0,0.00024657,2]
[336869867,1725221443320,-842.64,0.00024657,2]
[336869868,1725221443329,-1783.4,0.00024657,2]
[336869869,1725221443340,-500.0,0.00024657,2]
[336869870,1725221443350,-1630.76,0.00024657,2]
[336869871,1725221443360,-500.0,0.00024657,2]
[336869872,1725221443373,-500.0,0.00024657,2]
[336869873,1725221443383,-500.0,0.00024657,2]
[336869874,1725221443392,-500.0,0.00024657,2]
[336869875,1725221443528,-2448.54,0.00024657,2]
[336869876,1725221443538,-500.0,0.00024657,2]
[336869877,1725221443548,-500.0,0.00024657,2]
[336869878,1725221443558,-1088.52,0.00024657,2]
[336869879,1725221443568,-626.36,0.00024657,2]
[336869880,1725221443577,-504.07065381,0.00024657,2]
[336869881,1725221443587,-500.0,0.00024657,2]
[336869882,1725221443597,-500.0,0.00024657,2]
[336869883,1725221443607,-500.0,0.00024657,2]
[336869884,1725221443616,-399.17452007,0.00024657,2]
[336869885,1725221443625,-500.0,0.00024657,2]
[336869886,1725221443635,-3166.18,0.00024657,2]
[336869887,1725221443645,-1494.38,0.00024657,2]
[336869888,1725221443654,-500.0,0.00024657,2]
[336869889,1725221443664,-500.0,0.00024657,2]
[336869890,1725221443673,-403.36437749,0.00024657,2]
[336869891,1725221443683,-500.0,0.00024657,2]
[336869892,1725221443693,-500.0,0.00024657,2]
[336869893,1725221443702,-500.0,0.00024657,2]
[336869894,1725221443711,-500.24314518,0.00024657,2]
[336869895,1725221443721,-1766.48,0.00024657,2]
[336869896,1725221443731,-500.0,0.00024657,2]
[336869897,1725221443740,-500.0,0.00024657,2]
[336869898,1725221443750,-500.0,0.00024657,2]
[336869899,1725221443759,-500.0,0.00024657,2]
[336869900,1725221443769,-626.76,0.00024657,2]
[336869901,1725221443779,-500.0,0.00024657,2]
[336869902,1725221443789,-530.99,0.00024657,2]
[336869903,1725221443798,-2374.13,0.00024657,2]
[336869904,1725221443807,-1804.34,0.00024657,2]
[336869905,1725221443817,-500.0,0.00024657,2]
[336869906,1725221443828,-500.0,0.00024657,2]
[336869907,1725221443838,-500.0,0.00024657,2]
[336869908,1725221443848,-547.9,0.00024657,2]
[336869909,1725221443857,-1026.45,0.00024657,2]
[336869910,1725221443867,-500.0,0.00024657,2]
[336869911,1725221443876,-1436.26,0.00024657,2]
[336869912,1725221443886,-2634.53,0.00024657,2]
[336869913,1725221443895,-736.46,0.00024657,2]
[336869914,1725221443905,-500.0,0.00024657,2]
[336869915,1725221443915,-500.0,0.00024657,2]
[336869916,1725221443924,-500.0,0.00024657,2]
[336869917,1725221443933,-500.0,0.00024657,2]
[336869918,1725221443943,-500.0,0.00024657,2]
[336869919,1725221443953,-500.0,0.00024657,2]
[336869920,1725221443962,-500.0,0.00024657,2]
[336869921,1725221443971,-500.0,0.00024657,2]
[336869922,1725221443980,-500.0,0.00024657,2]
[336869923,1725221443993,-500.0,0.00024657,2]
[336869924,1725221444002,-500.0,0.00024657,2]
[336869925,1725221444013,-500.0,0.00024657,2]
[336869926,1725221444022,-1599.02,0.00024657,2]
[336869927,1725221444032,-500.0,0.00024657,2]
[336869928,1725221444041,-500.0,0.00024657,2]
[336869929,1725221444052,-1766.03,0.00024657,2]
[336869930,1725221444062,-1729.93,0.00024657,2]
[336869931,1725221444072,-500.0,0.00024657,2]
[336869932,1725221444081,-1077.65,0.00024657,2]
[336869933,1725221444091,-500.0,0.00024657,2]
[336869934,1725221444100,-505.35678504,0.00024657,2]
[336869935,1725221444110,-222.31699498,0.00024657,2]
[336869936,1725221444119,-500.0,0.00024657,2]
[336869937,1725221444129,-1648.2,0.00024657,2]
[336869938,1725221444139,-501.51023586,0.00024657,2]
[336869939,1725221444148,-500.0,0.00024657,2]
[336869940,1725221444157,-1186.35,0.00024657,2]
[336869941,1725221444167,-500.0,0.00024657,2]
[336869942,1725221444177,-500.0,0.00024657,2]
[336869943,1725221444186,-508.52,0.00024657,2]
[336869944,1725221444195,-1210.09,0.00024657,2]
[336869945,1725221444205,-500.0,0.00024657,2]
[336869946,1725221444215,-500.0,0.00024657,2]
[336869947,1725221444226,-502.05925854,0.00024657,2]
[336869948,1725221444236,-500.0,0.00024657,2]
[336869949,1725221444247,-500.0,0.00024657,2]
[336869950,1725221444258,-500.0,0.00024657,2]
[336869951,1725221444268,-500.0,0.00024657,2]
[336869952,1725221444278,-500.0,0.00024657,2]
[336869953,1725221444288,-500.0,0.00024657,2]
[336869954,1725221444298,-500.0,0.00024657,2]
[336869955,1725221444307,-520.52677227,0.00024657,2]
[336869956,1725221444317,-500.0,0.00024657,2]
[336869957,1725221444327,-1348.36,0.00024657,2]
[336869958,1725221444339,-500.0,0.00024657,2]
[336869959,1725221444350,-500.0,0.00024657,2]
[336869960,1725221444362,-678.43,0.00024657,2]
[336869961,1725221444375,-500.0,0.00024657,2]
[336869962,1725221444386,-1129.55,0.00024657,2]
[336869963,1725221444395,-500.0,0.00024657,2]
[336869964,1725221444407,-828.02,0.00024657,2]
[336869965,1725221444417,-500.0,0.00024657,2]
[336869966,1725221444427,-1327.14,0.00024657,2]
[336869967,1725221444436,-6057.72,0.00024657,2]
[336869968,1725221444447,-500.0,0.00024657,2]
[336869969,1725221444457,-546.15,0.00024657,2]
[336869970,1725221444466,-500.0,0.00024657,2]
[336869971,1725221444475,-500.0,0.00024657,2]
[336869972,1725221444485,-500.0,0.00024657,2]
[336869973,1725221444494,-500.0,0.00024657,2]
[336869974,1725221444503,-500.0,0.00024657,2]
[336869975,1725221444513,-500.0,0.00024657,2]
[336869976,1725221444522,-725.57,0.00024657,2]
[336869977,1725221444532,-7675.38,0.00024657,2]
[336869978,1725221444542,-500.0,0.00024657,2]
[336869979,1725221444551,-1148.79,0.00024657,2]
[336869980,1725221444561,-500.0,0.00024657,2]
[336869981,1725221444571,-1062.3,0.00024657,2]
[336869982,1725221444580,-748.97,0.00024657,2]
[336869983,1725221444589,-500.0,0.00024657,2]
[336869984,1725221444599,-500.0,0.00024657,2]
[336869985,1725221444609,-1772.48,0.00024657,2]
[336869986,1725221444619,-500.0,0.00024657,2]
[336869987,1725221444629,-500.0,0.00024657,2]
[336869988,1725221444640,-500.0,0.00024657,2]
[336869989,1725221444650,-500.0,0.00024657,2]
[336869990,1725221444660,-500.0,0.00024657,2]
[336869991,1725221444670,-436.35218732,0.00024657,2]
[336869992,1725221444680,-1624.73,0.00024657,2]
[336869993,1725221444689,-502.82497924,0.00024657,2]
[336869994,1725221444699,-1529.18,0.00024657,2]
[336869995,1725221444709,-500.0,0.00024657,2]
[336869996,1725221444718,-500.0,0.00024657,2]
[336869997,1725221444728,-1498.24,0.00024657,2]
[336869998,1725221444737,-500.0,0.00024657,2]
[336869999,1725221444748,-732.03,0.00024657,2]
[336870000,1725221444758,-500.0,0.00024657,2]
[336870001,1725221444767,-500.0,0.00024657,2]
[336870002,1725221444777,-500.0,0.00024657,2]
[336870003,1725221444786,-500.24424394,0.00024657,2]
[336870004,1725221444800,-500.0,0.00024657,2]
[336870005,1725221444810,-931.0,0.00024657,2]
[336870006,1725221444821,-1839.62,0.00024657,2]
[336870007,1725221444832,-500.0,0.00024657,2]
[336870008,1725221444843,-500.0,0.00024657,2]
[336870009,1725221444853,-298.82572696,0.00024657,2]
[336870010,1725221444863,-500.0,0.00024657,2]
[336870011,1725221444873,-500.0,0.00024657,2]
[336870012,1725221444882,-500.0,0.00024657,2]
[336870013,1725221444891,-500.0,0.00024657,2]
[336870014,1725221444900,-416.09270288,0.00024657,2]
[336870015,1725221444910,-500.0,0.00024657,2]
[336870016,1725221444919,-500.0,0.00024657,2]
[336870017,1725221444929,-500.0,0.00024657,2]
[336870018,1725221444938,-500.0,0.00024657,2]
[336870019,1725221444948,-2093.63,0.00024657,2]
[336870020,1725221444957,-500.0,0.00024657,2]
[336870021,1725221444967,-3271.16,0.00024657,2]
[336870022,1725221444976,-1437.72,0.00024657,2]
[336870023,1725221444986,-500.0,0.00024657,2]
[336870024,1725221444996,-500.0,0.00024657,2]
[336870025,1725221445007,-500.0,0.00024657,2]
[336870026,1725221445016,-500.0,0.00024657,2]
[336870027,1725221445027,-500.0,0.00024657,2]
[336870028,1725221445037,-1574.33,0.00024657,2]
[336870029,1725221445046,-500.0,0.00024657,2]
[336870030,1725221445056,-2206.77,0.00024657,2]
[336870031,1725221445066,-2327.32,0.00024657,2]
[336870032,1725221445075,-500.0,0.00024657,2]
[336870033,1725221445085,-500.0,0.00024657,2]
[336870034,1725221445094,-583.14,0.00024657,2]
[336870035,1725221445104,-500.0,0.00024657,2]
[336870036,1725221445113,-500.0,0.00024657,2]
[336870037,1725221445123,-566.25,0.00024657,2]
[336870038,1725221445133,-500.0,0.00024657,2]
[336870039,1725221445142,-500.0,0.00024657,2]
[336870040,1725221445152,-1439.73,0.00024657,2]
[336870041,1725221445161,-500.0,0.00024657,2]
[336870042,1725221445171,-500.0,0.00024657,2]
[336870043,1725221445181,-500.0,0.00024657,2]
[336870044,1725221445191,-500.0,0.00024657,2]
[336870045,1725221445200,-500.0,0.00024657,2]
[336870046,1725221445209,-593.55,0.00024657,2]
[336870047,1725221445219,-820.8,0.00024657,2]
[336870048,1725221445228,-500.0,0.00024657,2]
[336870049,1725221445238,-500.0,0.00024657,2]
[336870050,1725221445247,-500.0,0.00024657,2]
[336870051,1725221445257,-500.0,0.00024657,2]
[336870052,1725221445266,-500.0,0.00024657,2]
[336870053,1725221445276,-571.59,0.00024657,2]
[336870054,1725221445285,-1508.27,0.00024657,2]
[336870055,1725221445294,-200.0,0.00024658,15]
[336870056,1725221445304,-380.0,0.00024658,2]
[336870057,1725221445314,-500.0,0.00024672,2]
[336870058,1725221445323,-500.0,0.00024673,2]
[336870059,1725221445332,-458.34872611,0.00024694,2]
[336870060,1725221445342,-458.34872611,0.00024763,2]
[336870061,1725221445351,-150.112233,0.000248,3]
[336870062,1725221445361,-150.112233,0.000248,2]
[336870063,1725221445373,-458.34872611,0.00024831,2]
[336870065,1725221445383,-1368.23083191,0.00024831,2]
[336870067,1725221445392,-150.112233,0.000249,5]
[336870069,1725221445402,-150.112233,0.000249,4]
[336870070,1725221445413,-5062.03291076,0.00024921,3]
[336870071,1725221445422,-500.0,0.00024929,2]
[336870072,1725221445433,-500.0,0.00024929,2]
[336870073,1725221445447,-500.0,0.00024929,2]
[336870074,1725221445457,-500.0,0.0002493,2]
[336870075,1725221445467,-500.0,0.0002493,2]
[336870076,1725221445476,-500.0,0.0002493,2]
[336870077,1725221445486,-500.0,0.0002493,2]
[336870078,1725221445495,-500.0,0.0002493,2]
[336870079,1725221445504,-552.08,0.0002493,2]
[336870080,1725221445514,-500.0,0.0002493,2]
[336870081,1725221445523,-500.0,0.0002493,2]
[336870082,1725221445533,-500.0,0.0002493,2]
[336870083,1725221445542,-500.0,0.0002493,2]
[336870084,1725221445551,-500.0,0.0002493,2]
[336870085,1725221445561,-1884.93,0.0002493,2]
[336870086,1725221445570,-1884.93,0.0002493,2]
[336870087,1725221445579,-1884.93,0.0002493,2]
[336870088,1725221445588,-1884.93,0.0002493,2]
[336870089,1725221445598,-1884.93,0.0002493,2]
[336870090,1725221445607,-1884.93,0.0002493,2]
[336870091,1725221445616,-1884.93,0.0002493,2]
[336870092,1725221445625,-500.0,0.0002493,2]
[336870093,1725221445634,-500.0,0.0002493,2]
[336870094,1725221445643,-500.0,0.0002493,2]
[336870095,1725221445652,-475.2,0.0002493,2]
[336870096,1725221445662,-500.0,0.0002493,2]
[336870097,1725221445671,-500.0,0.0002493,2]
[336870098,1725221445680,-500.0,0.0002493,2]
[336870099,1725221445689,-500.0,0.0002493,2]